bitfinex/quotes_BTCUSD_20250614
["timestamp","ask_amount","ask_price","bid_price","bid_amount"]
[1749870253089,0.23459869,105360.0,105350.0,0.38920503]
[1749870253294,0.23459869,105360.0,105350.0,0.40698654]
[1749870253502,0.23459869,105360.0,105350.0,0.38920503]
[1749870253704,0.23459869,105360.0,105350.0,0.40698666]
[1749870253919,0.23459869,105360.0,105350.0,0.40698681]
[1749870254123,0.02947333,105360.0,105350.0,0.42358818]
[1749870254343,0.05922153,105360.0,105350.0,0.39955909]
[1749870254550,0.07820306,105360.0,105350.0,0.55291909]
[1749870254749,0.07820306,105360.0,105350.0,0.5351374]
[1749870254962,0.07820306,105360.0,105350.0,0.45676985]
[1749870255176,0.07820306,105360.0,105350.0,0.43898818]
[1749870255656,0.07820306,105360.0,105350.0,0.45676985]
[1749870256039,0.07820306,105360.0,105350.0,0.45676951]
[1749870256498,0.07820306,105360.0,105350.0,0.45676949]
[1749870256871,0.07820306,105360.0,105350.0,0.45676905]
[1749870257071,0.07820306,105360.0,105350.0,0.43898818]
[1749870257273,0.07820306,105360.0,105350.0,0.45676905]
[1749870257806,0.07820306,105360.0,105350.0,0.43898818]
[1749870258217,0.07820306,105360.0,105350.0,0.45676905]
[1749870258788,0.07820306,105360.0,105350.0,0.43898818]
[1749870258996,0.07820306,105360.0,105350.0,0.45676904]
[1749870259194,0.07820306,105360.0,105350.0,0.43898818]
[1749870259501,0.07820306,105360.0,105350.0,0.45676904]
[1749870259695,0.07820306,105360.0,105350.0,0.43898818]
[1749870259876,0.08769405,105360.0,105350.0,0.43898818]
[1749870260035,0.08769405,105360.0,105350.0,0.45676904]
[1749870260246,0.07820297,105360.0,105350.0,0.45676904]
[1749870260443,0.08769405,105360.0,105350.0,0.45676904]
[1749870260845,0.07820297,105360.0,105350.0,0.45676904]
[1749870261056,0.07820297,105360.0,105350.0,0.43898818]
[1749870261273,0.07820297,105360.0,105350.0,0.45676904]
[1749870261922,0.07820297,105360.0,105350.0,0.43898818]
[1749870262144,0.07820297,105360.0,105350.0,0.45676904]
[1749870262351,0.07820297,105360.0,105350.0,0.43898818]
[1749870262521,0.07820297,105360.0,105350.0,0.4567692]
[1749870264123,0.06871198,105360.0,105350.0,0.45676141]
[1749870264329,0.07820297,105360.0,105350.0,0.45676141]
[1749870264552,0.07820297,105360.0,105350.0,0.43898818]
[1749870264757,0.07820297,105360.0,105350.0,0.45676141]
[1749870265597,0.06871198,105360.0,105350.0,0.43898818]
[1749870265804,0.07820306,105360.0,105350.0,0.43898818]
[1749870265961,0.07820306,105360.0,105350.0,0.45676141]
[1749870266328,0.07820306,105360.0,105350.0,0.45676142]
[1749870266532,0.08769405,105360.0,105350.0,0.45676142]
[1749870266963,0.08769405,105360.0,105350.0,0.45676141]
[1749870267955,0.08769405,105360.0,105350.0,0.43898818]
[1749870268155,0.08769405,105360.0,105350.0,0.45676141]
[1749870268391,0.08769405,105360.0,105350.0,0.43898818]
[1749870268800,0.08769405,105360.0,105350.0,0.45676141]
[1749870269506,0.06871198,105360.0,105350.0,0.45676141]
[1749870269706,0.07820297,105360.0,105350.0,0.45676141]
[1749870269978,0.04845405,105360.0,105350.0,0.45676141]
[1749870270184,0.04973054,105360.0,105350.0,0.64915239]
[1749870270390,0.001,105360.0,105350.0,0.64915149]
[1749870270600,0.001,105360.0,105350.0,0.98915146]
[1749870270813,0.001,105360.0,105350.0,0.989151]
[1749870271230,0.001,105360.0,105350.0,0.99987716]
[1749870271439,0.001,105360.0,105350.0,1.01764802]
[1749870272063,0.001,105360.0,105350.0,0.99987716]
[1749870272467,0.001,105360.0,105350.0,1.01764801]
[1749870275915,0.001,105360.0,105350.0,0.92149879]
[1749870276322,0.001,105360.0,105350.0,0.90372794]
[1749870276526,0.001,105360.0,105350.0,0.92149879]
[1749870277494,0.001,105360.0,105350.0,0.92150837]
[1749870277713,0.001,105360.0,105350.0,0.9392888]
[1749870278124,0.001,105360.0,105350.0,0.92150837]
[1749870278534,0.001,105360.0,105350.0,1.03543802]
[1749870279159,0.001,105360.0,105350.0,1.01765759]
[1749870279367,0.001,105360.0,105350.0,1.03543802]
[1749870279575,0.001,105360.0,105350.0,1.01765759]
[1749870279770,0.001,105360.0,105350.0,1.03543802]
[1749870280215,0.001,105360.0,105350.0,1.01765759]
[1749870280451,0.001,105360.0,105350.0,1.03543802]
[1749870280692,0.001,105360.0,105350.0,1.01765759]
[1749870280918,0.001,105360.0,105350.0,1.03545196]
[1749870283057,0.001,105360.0,105350.0,1.03540495]
[1749870284383,0.001,105360.0,105350.0,1.01765759]
[1749870284611,0.001,105360.0,105350.0,1.03540495]
[1749870285541,0.001,105360.0,105350.0,1.01765759]
[1749870285990,0.001,105360.0,105350.0,1.03540495]
[1749870286185,0.001,105360.0,105350.0,1.01765759]
[1749870286538,0.001,105360.0,105350.0,1.03540495]
[1749870286744,0.001,105360.0,105350.0,1.03540492]
[1749870286943,0.001,105360.0,105350.0,0.88204492]
[1749870287067,0.001,105360.0,105350.0,1.03536491]
[1749870287280,0.001,105360.0,105350.0,1.01761759]
[1749870287486,0.001,105360.0,105350.0,1.03536491]
[1749870287697,0.001,105360.0,105350.0,1.01761759]
[1749870287901,0.001,105360.0,105350.0,1.03536491]
[1749870289348,0.001,105360.0,105350.0,1.01761759]
[1749870289617,0.001,105360.0,105350.0,1.03536491]
[1749870290128,0.001,105360.0,105350.0,1.01761759]
[1749870290344,0.001,105360.0,105350.0,1.03536491]
[1749870290559,0.001,105360.0,105350.0,1.01761759]
[1749870290778,0.001,105360.0,105350.0,1.03536491]
[1749870290990,0.001,105360.0,105350.0,1.03536475]
[1749870291202,0.001,105360.0,105350.0,1.03536479]
[1749870291498,0.001,105360.0,105350.0,1.03536475]
[1749870291737,0.001,105360.0,105350.0,1.01761759]
[1749870291953,0.001,105360.0,105350.0,1.03536409]
[1749870292182,0.04872865,105380.0,105370.0,0.25057734]
[1749870292392,0.05821757,105380.0,105370.0,0.54005539]
[1749870292616,0.04872865,105380.0,105370.0,0.5223096]
[1749870292831,0.05821748,105380.0,105370.0,0.5400554]
[1749870293020,0.04872865,105380.0,105370.0,0.5400554]
[1749870293440,0.03924,105380.0,105370.0,0.5400554]
[1749870293675,0.04872874,105380.0,105370.0,0.5490554]
[1749870294403,0.05821766,105380.0,105370.0,0.5490554]
[1749870294608,0.05821766,105380.0,105370.0,0.54906767]
[1749870294813,0.06770667,105380.0,105370.0,0.54906767]
[1749870295014,0.05821766,105380.0,105370.0,0.54906766]
[1749870295257,0.05821766,105380.0,105370.0,0.55306766]
[1749870295450,0.04872874,105380.0,105370.0,0.5131391]
[1749870295652,0.05821766,105380.0,105370.0,0.53089716]
[1749870296079,0.04872874,105380.0,105370.0,0.5131391]
[1749870296259,0.04872874,105380.0,105370.0,0.53089716]
[1749870296468,0.04872874,105380.0,105370.0,0.60771558]
[1749870296674,0.04872874,105380.0,105370.0,0.58995752]
[1749870296818,0.05821775,105380.0,105370.0,0.53089716]
[1749870297585,0.05821775,105380.0,105370.0,0.5131391]
[1749870297735,0.20874913,105390.0,105380.0,0.20876798]
[1749870297938,0.24803681,105390.0,105380.0,0.30500974]
[1749870298260,4.768e-05,105390.0,105380.0,0.41052935]
[1749870298459,0.05826381,105390.0,105380.0,0.35508767]
[1749870299225,0.08224066,105390.0,105380.0,0.33928767]
[1749870299691,0.08424066,105390.0,105380.0,0.33928767]
[1749870300702,0.07924066,105390.0,105380.0,0.33928767]
[1749870300905,0.08672922,105390.0,105380.0,0.34328767]
[1749870301347,0.08672922,105390.0,105380.0,0.34728767]
[1749870302260,0.27650054,105390.0,105380.0,0.33779884]
[1749870302464,0.26701261,105390.0,105380.0,0.50068785]
[1749870302895,0.25752441,105390.0,105380.0,0.49119884]
[1749870303095,0.25752441,105390.0,105380.0,0.50049756]
[1749870303510,0.25752441,105390.0,105380.0,0.50998657]
[1749870304041,0.25752441,105390.0,105380.0,0.49100846]
[1749870304658,0.25752441,105390.0,105380.0,0.50049756]
[1749870304857,0.25752441,105390.0,105380.0,0.50998657]
[1749870305714,0.06775309,105390.0,105380.0,0.50998657]
[1749870305892,0.06775309,105390.0,105380.0,0.5194754]
[1749870308066,0.06775309,105390.0,105380.0,0.50998657]
[1749870308279,0.06775309,105390.0,105380.0,0.51947549]
[1749870309633,0.06775309,105390.0,105380.0,0.56576639]
[1749870310194,0.05826417,105390.0,105380.0,0.56576576]
[1749870310425,0.06775192,105390.0,105380.0,0.58096576]
[1749870310651,0.0772403,105390.0,105380.0,0.53467486]
[1749870310867,0.04748886,105390.0,105380.0,0.53467486]
[1749870311085,0.08672886,105390.0,105380.0,0.53467486]
[1749870311276,0.04748886,105390.0,105380.0,0.53467486]
[1749870311532,0.08672886,105390.0,105380.0,0.60712308]
[1749870311755,0.26701234,105390.0,105380.0,0.50049711]
[1749870312197,0.22777234,105390.0,105380.0,0.50049711]
[1749870312415,0.26701234,105390.0,105380.0,0.50049711]
[1749870313281,0.25752423,105390.0,105380.0,0.4910081]
[1749870313498,0.25752423,105390.0,105380.0,0.4757081]
[1749870313723,0.25752423,105390.0,105380.0,0.31281927]
[1749870313950,5.16906256,105390.0,105380.0,0.008]
[1749870314195,5.36186256,105390.0,105380.0,0.008]
[1749870314851,0.21477861,105380.0,105370.0,0.34]
[1749870315071,0.21477861,105380.0,105370.0,0.43624176]
[1749870316628,0.21477861,105380.0,105370.0,0.44024176]
[1749870317276,0.21477861,105380.0,105370.0,0.44424176]
[1749870317490,0.21477861,105380.0,105370.0,0.45359564]
[1749870318663,0.21477861,105380.0,105370.0,0.463086]
[1749870319796,0.21477861,105380.0,105370.0,0.45359564]
[1749870321947,0.21477861,105380.0,105370.0,0.463086]
[1749870322152,0.2087678,105380.0,105370.0,0.66238361]
[1749870322369,0.2087678,105380.0,105370.0,0.67798361]
[1749870323158,0.19927861,105380.0,105370.0,0.478686]
[1749870323360,0.19927861,105380.0,105370.0,0.463086]
[1749870323597,0.19927861,105380.0,105370.0,0.45359564]
[1749870323809,0.18978933,105380.0,105370.0,0.45359564]
[1749870324379,0.18978933,105380.0,105370.0,0.65289316]
[1749870324585,0.19927861,105380.0,105370.0,0.66238325]
[1749870324795,0.20876762,105380.0,105370.0,0.73053182]
[1749870325011,0.20876762,105380.0,105370.0,0.69696307]
[1749870326140,0.21825699,105380.0,105370.0,0.69696307]
[1749870326556,0.02846766,105380.0,105370.0,0.7064528]
[1749870328724,0.26718645,105380.0,105370.0,0.69696307]
[1749870328931,0.06790766,105380.0,105370.0,0.69696307]
[1749870329419,0.26718645,105380.0,105370.0,0.68747325]
[1749870330357,0.26718645,105380.0,105370.0,0.67187325]
[1749870331906,0.26718645,105380.0,105370.0,0.66238325]
[1749870332629,0.26718645,105380.0,105370.0,0.67838325]
[1749870332833,0.26718645,105380.0,105370.0,0.69736316]
[1749870333290,0.26718645,105380.0,105370.0,0.70685298]
[1749870333943,0.25769744,105380.0,105370.0,0.67187325]
[1749870334143,0.27359744,105380.0,105370.0,0.68136307]
[1749870334373,0.27359744,105380.0,105370.0,0.82547325]
[1749870334600,0.26410816,105380.0,105370.0,0.45359564]
[1749870334820,0.26971879,105380.0,105370.0,0.008]
[1749870337201,0.26971879,105380.0,105370.0,0.025792]
[1749870338042,0.25461879,105380.0,105370.0,0.025792]
[1749870338249,0.25461879,105380.0,105370.0,0.008]
[1749870338483,0.25461879,105380.0,105370.0,0.025792]
[1749870340256,0.25461879,105380.0,105370.0,0.02578116]
[1749870340889,0.25461879,105380.0,105370.0,0.008]
[1749870341530,0.25461879,105380.0,105370.0,0.02578116]
[1749870342367,0.25461879,105380.0,105370.0,0.008]
[1749870344790,0.25427467,105380.0,105370.0,0.008]
[1749870348057,0.23837467,105380.0,105370.0,0.008]
[1749870349596,0.23837467,105380.0,105370.0,0.0231]
[1749870356016,0.19927879,105380.0,105370.0,0.21290734]
[1749870356225,0.19927879,105380.0,105370.0,0.22940734]
[1749870356425,0.22922933,105380.0,105370.0,0.23889752]
[1749870357162,0.22922933,105380.0,105370.0,0.2388977]
[1749870358320,0.22922933,105380.0,105370.0,0.24838797]
[1749870362935,0.22922933,105380.0,105370.0,0.0396]
[1749870363069,0.22922933,105380.0,105370.0,0.04909036]
[1749870363565,0.22922933,105380.0,105370.0,0.24838797]
[1749870366222,0.22922933,105380.0,105370.0,0.04909036]
[1749870366450,0.22922933,105380.0,105370.0,0.06688058]
[1749870366656,0.22922933,105380.0,105370.0,0.04909036]
[1749870366863,0.22922933,105380.0,105370.0,0.06688183]
[1749870367077,0.22922933,105380.0,105370.0,0.04909036]
[1749870367495,0.22922933,105380.0,105370.0,0.06688183]
[1749870367703,0.22847013,105380.0,105370.0,0.06688183]
[1749870368137,0.22847013,105380.0,105370.0,0.04909036]
[1749870368749,0.22847013,105380.0,105370.0,0.06688183]
[1749870369385,0.22847013,105380.0,105370.0,0.04909036]
[1749870369642,0.22847013,105380.0,105370.0,0.06688183]
[1749870369839,0.22847013,105380.0,105370.0,0.26617952]
[1749870370051,0.22847013,105380.0,105370.0,0.24838797]
[1749870370464,0.22847013,105380.0,105370.0,0.26617952]
[1749870370895,0.22847013,105380.0,105370.0,0.24838797]
[1749870371112,0.22847013,105380.0,105370.0,0.26617952]
[1749870371523,0.22847013,105380.0,105370.0,0.24590797]
[1749870371741,0.22847013,105380.0,105370.0,0.06440191]
[1749870372708,0.22847013,105380.0,105370.0,0.25420925]
[1749870373858,0.19851959,105380.0,105370.0,0.25420924]
[1749870374102,0.19851959,105380.0,105370.0,0.26369933]
[1749870374103,0.24732878,105380.0,105370.0,0.26369933]
[1749870374312,0.24732878,105380.0,105370.0,0.26488752]
[1749870374740,0.24732878,105380.0,105370.0,0.2826781]
[1749870374949,0.24732878,105380.0,105370.0,0.27318828]
[1749870375163,0.24732878,105380.0,105370.0,0.27318844]
[1749870375370,0.24732878,105380.0,105370.0,0.27318861]
[1749870375581,0.24732878,105380.0,105370.0,0.27318858]
[1749870376028,0.24732878,105380.0,105370.0,0.2553977]
[1749870376652,0.24732878,105380.0,105370.0,0.27318857]
[1749870376879,0.24732878,105380.0,105370.0,0.26369866]
[1749870377092,0.24732878,105380.0,105370.0,0.24590779]
[1749870377527,0.24732878,105380.0,105370.0,0.26369198]
[1749870377734,0.24732878,105380.0,105370.0,0.25539779]
[1749870377935,0.24732878,105380.0,105370.0,0.27318198]
[1749870378775,0.24732878,105380.0,105370.0,0.2648877]
[1749870378979,0.24732878,105380.0,105370.0,0.28267189]
[1749870379183,0.24732878,105380.0,105370.0,0.2648877]
[1749870379391,0.24732878,105380.0,105370.0,0.28267189]
[1749870379780,0.24732878,105380.0,105370.0,0.2648877]
[1749870382409,0.24732878,105380.0,105370.0,0.27437752]
[1749870382743,0.24732878,105380.0,105370.0,0.2648877]
[1749870383360,0.24732878,105380.0,105370.0,0.2838877]
[1749870383569,0.24732878,105380.0,105370.0,0.2648877]
[1749870384290,0.64732878,105380.0,105370.0,0.2648877]
[1749870389296,0.4,105380.0,105370.0,0.51448946]
[1749870389535,0.44872865,105380.0,105370.0,0.52397919]
[1749870389957,0.4,105380.0,105370.0,0.52397919]
[1749870390186,0.44872874,105380.0,105370.0,0.52397919]
[1749870391390,0.44872874,105380.0,105370.0,0.54175311]
[1749870391592,0.44872874,105380.0,105370.0,0.52397919]
[1749870391805,0.44872874,105380.0,105370.0,0.54175311]
[1749870393356,0.43924,105380.0,105370.0,0.59809942]
[1749870393573,0.43924,105380.0,105370.0,0.54175251]
[1749870393775,0.4,105380.0,105370.0,0.88175228]
[1749870393994,0.4,105380.0,105370.0,0.86397919]
[1749870394216,0.4,105380.0,105370.0,0.88175175]
[1749870394428,0.4,105380.0,105370.0,0.88175153]
[1749870394634,0.4,105380.0,105370.0,0.88175148]
[1749870394834,0.4,105380.0,105370.0,0.92446033]
[1749870395113,0.4,105380.0,105370.0,0.92446013]
[1749870396075,0.4,105380.0,105370.0,0.88175128]
[1749870396536,0.4,105380.0,105370.0,0.88175141]
[1749870396746,0.4,105380.0,105370.0,0.86397919]
[1749870397574,0.4,105380.0,105370.0,0.71061919]
[1749870397803,0.4,105380.0,105370.0,0.88171387]
[1749870398012,0.4,105380.0,105370.0,0.86393919]
[1749870398219,0.4,105380.0,105370.0,0.88171387]
[1749870399777,0.4,105380.0,105370.0,0.8817141]
[1749870400487,0.4,105380.0,105370.0,0.86393919]
[1749870400736,0.4,105380.0,105370.0,0.8817141]
[1749870401197,0.4,105380.0,105370.0,0.86393919]
[1749870401486,0.4,105380.0,105370.0,0.8817141]
[1749870401942,0.4,105380.0,105370.0,0.7283941]
[1749870402155,0.4,105380.0,105370.0,0.86393919]
[1749870402367,0.4,105380.0,105370.0,0.8817141]
[1749870402773,0.4,105380.0,105370.0,0.88171409]
[1749870402981,0.4,105380.0,105370.0,0.86393919]
[1749870403192,0.4,105380.0,105370.0,0.88171409]
[1749870403807,0.4,105380.0,105370.0,0.88171408]
[1749870404264,0.4,105380.0,105370.0,0.88171409]
[1749870404466,0.4,105380.0,105370.0,0.86393919]
[1749870404878,0.4,105380.0,105370.0,0.88171409]
[1749870405084,0.4,105380.0,105370.0,0.86393919]
[1749870405919,0.06775147,105390.0,105380.0,0.24935663]
[1749870406131,0.06775147,105390.0,105380.0,0.36337329]
[1749870406335,0.06775147,105390.0,105380.0,0.36335654]
[1749870407179,0.07575147,105390.0,105380.0,0.51667654]
[1749870407396,0.08523976,105390.0,105380.0,0.51667654]
[1749870407599,0.07575147,105390.0,105380.0,0.51667654]
[1749870407847,0.08523976,105390.0,105380.0,0.51667654]
[1749870408058,0.06775147,105390.0,105380.0,0.51667654]
[1749870408269,0.06775147,105390.0,105380.0,0.51668013]
[1749870408475,0.06775147,105390.0,105380.0,0.52068013]
[1749870408769,0.06775147,105390.0,105380.0,0.50591839]
[1749870408976,0.06775147,105390.0,105380.0,0.52368013]
[1749870409394,0.06775147,105390.0,105380.0,0.50591839]
[1749870409595,0.06775147,105390.0,105380.0,0.52368013]
[1749870410026,0.06775147,105390.0,105380.0,0.50591839]
[1749870410229,0.07723976,105390.0,105380.0,0.52368013]
[1749870410438,0.07723976,105390.0,105380.0,0.52368014]
[1749870410858,0.07723976,105390.0,105380.0,0.50591839]
[1749870411061,0.07723976,105390.0,105380.0,0.52368032]
[1749870411278,0.26701171,105390.0,105380.0,0.32977151]
[1749870411475,0.28251171,105390.0,105380.0,0.49258053]
[1749870411710,0.28251171,105390.0,105380.0,0.50206978]
[1749870411915,0.08672886,105390.0,105380.0,0.50206962]
[1749870412116,0.08672886,105390.0,105380.0,0.52705842]
[1749870412326,0.08672886,105390.0,105380.0,0.50929632]
[1749870412656,0.08672886,105390.0,105380.0,0.52705839]
[1749870413068,0.08672886,105390.0,105380.0,0.52705858]
[1749870413278,0.08672886,105390.0,105380.0,0.50929632]
[1749870413480,0.08672886,105390.0,105380.0,0.52705849]
[1749870413709,0.08672886,105390.0,105380.0,0.52705842]
[1749870413920,0.08672886,105390.0,105380.0,0.50929632]
[1749870414149,0.08672886,105390.0,105380.0,0.52705839]
[1749870414556,0.08672886,105390.0,105380.0,0.50929632]
[1749870414971,0.08672886,105390.0,105380.0,0.52705839]
[1749870415178,0.08672886,105390.0,105380.0,0.50929632]
[1749870415382,0.08672886,105390.0,105380.0,0.52705839]
[1749870415820,0.08672886,105390.0,105380.0,0.50929632]
[1749870416027,0.08672886,105390.0,105380.0,0.52705839]
[1749870416309,0.08672886,105390.0,105380.0,0.50929632]
[1749870416454,0.08672886,105390.0,105380.0,0.52705839]
[1749870419116,0.08672886,105390.0,105380.0,0.5270656]
[1749870419539,0.07724039,105390.0,105380.0,0.52706551]
[1749870419937,0.07724039,105390.0,105380.0,0.52706511]
[1749870420181,0.07724039,105390.0,105380.0,0.52706497]
[1749870420447,0.05826372,105390.0,105380.0,0.52706497]
[1749870420663,0.05826372,105390.0,105380.0,0.54276497]
[1749870420887,0.06775201,105390.0,105380.0,0.54278351]
[1749870421130,0.06775201,105390.0,105380.0,0.54278332]
[1749870421344,0.07724039,105390.0,105380.0,0.54278332]
[1749870421838,0.07724039,105390.0,105380.0,0.52499632]
[1749870422060,0.07724039,105390.0,105380.0,0.54278374]
[1749870422375,0.07724039,105390.0,105380.0,0.54278387]
[1749870423035,0.07724039,105390.0,105380.0,0.52708387]
[1749870423239,0.07724039,105390.0,105380.0,0.50929632]
[1749870423443,0.07724039,105390.0,105380.0,0.52708387]
[1749870423685,0.07724039,105390.0,105380.0,0.50929632]
[1749870423934,0.07724039,105390.0,105380.0,0.52708387]
[1749870424892,0.05826372,105390.0,105380.0,0.52708387]
[1749870425139,0.05826372,105390.0,105380.0,0.54248296]
[1749870425369,0.05826372,105390.0,105380.0,0.54248031]
[1749870425605,0.06775192,105390.0,105380.0,0.54248031]
[1749870425833,0.04877561,105390.0,105380.0,0.52469632]
[1749870426080,0.05826372,105390.0,105380.0,0.54248031]
[1749870426316,0.06775192,105390.0,105380.0,0.52469632]
[1749870427221,0.06775192,105390.0,105380.0,0.54248031]
[1749870427452,0.06775192,105390.0,105380.0,0.52469632]
[1749870427670,0.07724021,105390.0,105380.0,0.54248031]
[1749870427887,0.07724021,105390.0,105380.0,0.52708031]
[1749870428355,0.08672859,105390.0,105380.0,0.50929632]
[1749870428579,0.26343567,105390.0,105380.0,0.12102575]
[1749870428818,0.42316738,105390.0,105380.0,0.02478509]
[1749870429050,0.40726738,105390.0,105380.0,0.02478509]
[1749870429492,0.40726738,105390.0,105380.0,0.02478568]
[1749870430374,0.42316738,105390.0,105380.0,0.02478568]
[1749870430858,0.42316738,105390.0,105380.0,0.007]
[1749870431072,0.42316738,105390.0,105380.0,0.02478568]
[1749870431516,0.42316738,105390.0,105380.0,0.007]
[1749870431971,0.42316738,105390.0,105380.0,0.02478568]
[1749870432430,0.42316738,105390.0,105380.0,0.02478581]
[1749870432905,5.36092238,105390.0,105380.0,0.007]
[1749870433119,5.36092238,105390.0,105380.0,0.02478713]
[1749870433335,5.36092238,105390.0,105380.0,0.02478739]
[1749870433562,5.36092238,105390.0,105380.0,0.02478764]
[1749870433779,0.21827707,105370.0,105360.0,0.57443192]
[1749870434000,0.20878743,105370.0,105360.0,0.68846132]
[1749870434209,0.20878743,105370.0,105360.0,0.68846159]
[1749870434673,0.20878743,105370.0,105360.0,0.68016476]
[1749870434890,0.20878743,105370.0,105360.0,0.68965575]
[1749870435099,0.20878743,105370.0,105360.0,0.71244367]
[1749870435317,0.20878743,105370.0,105360.0,0.69465575]
[1749870435529,0.20878743,105370.0,105360.0,0.71244367]
[1749870435752,0.20878743,105370.0,105360.0,0.70295268]
[1749870435962,0.20878743,105370.0,105360.0,0.69116476]
[1749870436212,0.20878743,105370.0,105360.0,0.49065443]
[1749870436428,0.20878743,105370.0,105360.0,0.14414326]
[1749870436644,0.20878743,105370.0,105360.0,0.1601433]
[1749870436872,0.20878743,105370.0,105360.0,0.35945976]
[1749870437302,0.20878743,105370.0,105360.0,0.34167417]
[1749870437519,0.20878743,105370.0,105360.0,0.35945975]
[1749870438151,0.20878743,105370.0,105360.0,0.35769975]
[1749870438378,0.20878743,105370.0,105360.0,0.35763972]
[1749870438591,0.20878743,105370.0,105360.0,0.33991417]
[1749870438811,0.20878743,105370.0,105360.0,0.35763973]
[1749870439013,0.20878743,105370.0,105360.0,0.33991417]
[1749870439432,0.20878743,105370.0,105360.0,0.35763972]
[1749870439659,0.20878743,105370.0,105360.0,0.33991417]
[1749870439883,0.20878743,105370.0,105360.0,0.35763972]
[1749870442706,0.20878743,105370.0,105360.0,0.33991417]
[1749870443374,0.24802743,105370.0,105360.0,0.35763972]
[1749870444221,0.24802743,105370.0,105360.0,0.33991417]
[1749870444429,0.24802743,105370.0,105360.0,0.36713071]
[1749870444640,0.24802743,105370.0,105360.0,0.37662161]
[1749870444847,0.24802743,105370.0,105360.0,0.35889606]
[1749870445051,0.24802743,105370.0,105360.0,0.53014161]
[1749870445258,0.24802743,105370.0,105360.0,0.51241606]
[1749870445465,0.24802743,105370.0,105360.0,0.51115972]
[1749870445676,0.24802743,105370.0,105360.0,0.53014143]
[1749870446463,0.24802743,105370.0,105360.0,0.51241588]
[1749870446673,0.24802743,105370.0,105360.0,0.53014144]
[1749870446891,0.24802743,105370.0,105360.0,0.53963216]
[1749870447101,0.24802743,105370.0,105360.0,0.5219066]
[1749870447568,0.24802743,105370.0,105360.0,0.38611215]
[1749870447791,0.24802743,105370.0,105360.0,0.3683866]
[1749870448001,0.24802743,105370.0,105360.0,0.38611215]
[1749870448213,0.24802743,105370.0,105360.0,0.3683866]
[1749870448431,0.24802743,105370.0,105360.0,0.38611215]
[1749870448633,0.24802743,105370.0,105360.0,0.3683866]
[1749870449051,0.24802743,105370.0,105360.0,0.38609154]
[1749870449931,0.24802743,105370.0,105360.0,0.3683866]
[1749870450335,0.24802743,105370.0,105360.0,0.38609154]
[1749870450544,0.24802743,105370.0,105360.0,0.3683866]
[1749870451160,0.24802743,105370.0,105360.0,0.38609154]
[1749870452276,0.24802743,105370.0,105360.0,0.38610835]
[1749870453339,0.24802743,105370.0,105360.0,0.3683866]
[1749870453580,0.24802743,105370.0,105360.0,0.38610835]
[1749870454170,0.24802743,105370.0,105360.0,0.3683866]
[1749870454425,0.24802743,105370.0,105360.0,0.38610835]
[1749870455304,0.24802743,105370.0,105360.0,0.3683866]
[1749870455516,0.24802743,105370.0,105360.0,0.38618245]
[1749870456515,0.24802743,105370.0,105360.0,0.3683866]
[1749870456953,0.24802743,105370.0,105360.0,0.38618245]
[1749870457374,0.24802743,105370.0,105360.0,0.3683866]
[1749870457636,0.24802743,105370.0,105360.0,0.38618245]
[1749870459358,0.24802743,105370.0,105360.0,0.3683866]
[1749870459563,0.24802743,105370.0,105360.0,0.38618245]
[1749870460202,0.24802743,105370.0,105360.0,0.3683866]
[1749870460407,0.24802743,105370.0,105360.0,0.38618167]
[1749870460592,0.24802743,105370.0,105360.0,0.3683866]
[1749870460830,0.24802743,105370.0,105360.0,0.38618224]
[1749870461715,0.24802743,105370.0,105360.0,0.3683866]
[1749870461925,0.24802743,105370.0,105360.0,0.38618224]
[1749870462136,0.24802743,105370.0,105360.0,0.38618235]
[1749870462550,0.24802743,105370.0,105360.0,0.3683866]
[1749870462760,0.24802743,105370.0,105360.0,0.38618224]
[1749870462990,0.24802743,105370.0,105360.0,0.38617998]
[1749870464886,0.24802743,105370.0,105360.0,0.3683866]
[1749870465349,0.24802743,105370.0,105360.0,0.33991417]
[1749870465548,0.24802743,105370.0,105360.0,0.36719875]
[1749870465792,0.24802743,105370.0,105360.0,0.34940516]
[1749870465965,0.24802743,105370.0,105360.0,0.36719875]
[1749870466599,0.24802743,105370.0,105360.0,0.34940516]
[1749870466816,0.24802743,105370.0,105360.0,0.36719879]
[1749870467149,0.24802743,105370.0,105360.0,0.37668968]
[1749870468187,0.24802743,105370.0,105360.0,0.35889606]
[1749870468391,0.24802743,105370.0,105360.0,0.37668924]
[1749870468784,0.24802743,105370.0,105360.0,0.35889606]
[1749870468999,0.24802743,105370.0,105360.0,0.37668924]
[1749870470287,0.24802743,105370.0,105360.0,0.35889606]
[1749870470503,0.24802743,105370.0,105360.0,0.39198924]
[1749870470711,0.24802743,105370.0,105360.0,0.39198908]
[1749870470932,0.24802743,105370.0,105360.0,0.37419606]
[1749870471350,0.24802743,105370.0,105360.0,0.39198903]
[1749870471606,0.24802743,105370.0,105360.0,0.39198902]
[1749870472467,0.24802743,105370.0,105360.0,0.37419606]
[1749870472729,0.24802743,105370.0,105360.0,0.39198902]
[1749870472922,0.43268743,105370.0,105360.0,0.02879296]
[1749870473147,0.40146743,105370.0,105360.0,0.04419312]
[1749870473357,0.19929752,105370.0,105360.0,0.04419362]
[1749870473570,0.22115036,105370.0,105360.0,0.27779213]
[1749870473784,0.4109577,105370.0,105360.0,0.25999851]
[1749870474001,0.4109577,105370.0,105360.0,0.27779156]
[1749870474219,0.20878779,105370.0,105360.0,0.27779158]
[1749870474470,0.40146779,105370.0,105360.0,0.26830055]
[1749870474692,0.39197761,105370.0,105360.0,0.26830055]
[1749870474899,0.39197761,105370.0,105360.0,0.27777895]
[1749870475539,5.1370493,105380.0,105370.0,0.21469752]
[1749870475760,0.02846748,105380.0,105370.0,0.36301163]
[1749870475981,0.01897811,105380.0,105370.0,0.36299758]
[1749870476202,0.03795604,105380.0,105370.0,0.37248681]
[1749870476462,0.07727604,105380.0,105370.0,0.35470901]
[1749870476680,0.26706537,105380.0,105370.0,0.34821928]
[1749870476899,0.26706537,105380.0,105370.0,0.36599653]
[1749870477110,0.27655483,105380.0,105370.0,0.37548634]
[1749870477316,0.26706618,105380.0,105370.0,0.37548636]
[1749870477525,0.26706618,105380.0,105370.0,0.3794868]
[1749870477770,0.26706618,105380.0,105370.0,0.3617091]
[1749870478194,0.26706618,105380.0,105370.0,0.37948716]
[1749870478416,0.26706618,105380.0,105370.0,0.3617091]
[1749870478634,0.26706618,105380.0,105370.0,0.37948712]
[1749870478846,0.26706618,105380.0,105370.0,0.3617091]
[1749870479304,0.26706618,105380.0,105370.0,0.37948713]
[1749870479530,0.26706618,105380.0,105370.0,0.3617091]
[1749870479747,0.26706618,105380.0,105370.0,0.37948713]
[1749870480169,0.25757726,105380.0,105370.0,0.36999731]
[1749870480453,0.24808816,105380.0,105370.0,0.15171979]
[1749870480658,0.23859879,105380.0,105370.0,0.36050767]
[1749870480882,0.23859879,105380.0,105370.0,0.34272964]